lending/lending_fUSD_20241229
["ID","MTS","AMOUNT","RATE_DAILY","PERIOD"]
[346993588,1735457447386,-500.0,0.00012998,2]
[346993589,1735457447396,-500.0,0.00012998,2]
[346993590,1735457447406,-500.0,0.00012998,2]
[346993591,1735457447416,-500.0,0.00012998,2]
[346993592,1735457447425,-500.0,0.00012998,2]
[346993593,1735457447435,-500.0,0.00012998,2]
[346993594,1735457447445,-500.0,0.00012998,2]
[346993595,1735457447454,-500.0,0.00012998,2]
[346993596,1735457447463,-500.0,0.00012998,2]
[346993597,1735457447472,-500.0,0.00012998,2]
[346993598,1735457447482,-500.0,0.00012998,2]
[346993599,1735457447492,-500.0,0.00012998,2]
[346993600,1735457447502,-500.0,0.00012998,2]
[346993601,1735457447511,-500.0,0.00012998,2]
[346993602,1735457447520,-500.0,0.00012998,2]
[346993603,1735457447530,-500.0,0.00012998,2]
[346993604,1735457447539,-500.0,0.00012998,2]
[346993605,1735457447548,-500.0,0.00012998,2]
[346993606,1735457447557,-500.0,0.00012998,2]
[346993607,1735457447568,-500.0,0.00012998,2]
[346993608,1735457447578,-516.99233798,0.00012998,2]
[346993609,1735457447587,-500.0,0.00012998,2]
[346993610,1735457447597,-500.0,0.00012998,2]
[346993611,1735457447608,-500.0,0.00012998,2]
[346993612,1735457447617,-500.0,0.00012998,2]
[346993613,1735457447626,-500.0,0.00012998,2]
[346993614,1735457447635,-500.0,0.00012998,2]
[346993615,1735457447645,-500.0,0.00012998,2]
[346993616,1735457447654,-500.0,0.00012998,2]
[346993617,1735457447663,-500.0,0.00012998,2]
[346993618,1735457447672,-500.0,0.00012998,2]
[346993619,1735457447681,-500.0,0.00012998,2]
[346993620,1735457447692,-500.0,0.00012998,2]
[346993621,1735457447702,-500.0,0.00012998,2]
[346993622,1735457447712,-500.0,0.00012998,2]
[346993623,1735457447722,-500.0,0.00012998,2]
[346993624,1735457447731,-500.0,0.00012998,2]
[346993625,1735457447740,-500.0,0.00012998,2]
[346993626,1735457447750,-502.29285995,0.00012998,2]
[346993627,1735457447759,-500.0,0.00012998,2]
[346993628,1735457447768,-503.27164339,0.00012998,2]
[346993629,1735457447778,-500.0,0.00012998,2]
[346993630,1735457447787,-500.0,0.00012998,2]
[346993631,1735457447797,-500.0,0.00012998,2]
[346993632,1735457447806,-500.0,0.00012998,2]
[346993633,1735457447816,-500.0,0.00012998,2]
[346993634,1735457447826,-500.0,0.00012998,2]
[346993635,1735457447840,-500.0,0.00012998,2]
[346993636,1735457447850,-500.0,0.00012998,2]
[346993637,1735457447860,-500.0,0.00012998,2]
[346993638,1735457447869,-500.0,0.00012998,2]
[346993639,1735457447879,-500.0,0.00012998,2]
[346993640,1735457447889,-500.0,0.00012998,2]
[346993641,1735457447898,-500.0,0.00012998,2]
[346993642,1735457447908,-500.0,0.00012998,2]
[346993643,1735457447918,-500.0,0.00012998,2]
[346993644,1735457447927,-500.0,0.00012998,2]
[346993645,1735457447936,-500.0,0.00012998,2]
[346993646,1735457447946,-500.0,0.00012998,2]
[346993647,1735457447955,-500.0,0.00012998,2]
[346993648,1735457447964,-500.0,0.00012998,2]
[346993649,1735457447973,-500.0,0.00012998,2]
[346993650,1735457447982,-500.0,0.00012998,2]
[346993651,1735457447992,-500.0,0.00012998,2]
[346993652,1735457448002,-500.0,0.00012998,2]
[346993653,1735457448011,-500.0,0.00012998,2]
[346993654,1735457448021,-500.0,0.00012998,2]
[346993655,1735457448030,-500.0,0.00012998,2]
[346993656,1735457448039,-500.0,0.00012998,2]
[346993657,1735457448048,-500.0,0.00012998,2]
[346993658,1735457448057,-500.0,0.00012998,2]
[346993659,1735457448067,-500.0,0.00012998,2]
[346993660,1735457448076,-500.0,0.00012998,2]
[346993661,1735457448086,-500.0,0.00012998,2]
[346993662,1735457448096,-500.0,0.00012998,2]
[346993663,1735457448105,-500.0,0.00012998,2]
[346993664,1735457448115,-500.0,0.00012998,2]
[346993665,1735457448124,-500.0,0.00012998,2]
[346993666,1735457448133,-500.0,0.00012998,2]
[346993667,1735457448143,-500.0,0.00012998,2]
[346993668,1735457448152,-577.14,0.00012998,2]
[346993669,1735457448162,-500.0,0.00012998,2]
[346993670,1735457448171,-500.0,0.00012998,2]
[346993671,1735457448181,-500.0,0.00012998,2]
[346993672,1735457448190,-504.0422931,0.00012998,2]
[346993673,1735457448199,-500.0,0.00012998,2]
[346993674,1735457448209,-577.72189459,0.00012998,2]
[346993675,1735457448218,-500.0,0.00012998,2]
[346993676,1735457448228,-500.0,0.00012998,2]
[346993677,1735457448238,-500.0,0.00012998,2]
[346993678,1735457448248,-500.0,0.00012998,2]
[346993679,1735457448257,-500.0,0.00012998,2]
[346993680,1735457448267,-500.0,0.00012998,2]
[346993681,1735457448276,-500.0,0.00012998,2]
[346993682,1735457448286,-500.0,0.00012998,2]
[346993683,1735457448295,-500.0,0.00012998,2]
[346993684,1735457448305,-500.0,0.00012998,2]
[346993685,1735457448315,-500.0,0.00012998,2]
[346993686,1735457448325,-500.0,0.00012998,2]
[346993687,1735457448333,-500.0,0.00012998,2]
[346993688,1735457448342,-500.0,0.00012998,2]
[346993689,1735457448351,-500.0,0.00012998,2]
[346993690,1735457448360,-500.0,0.00012998,2]
[346993691,1735457448369,-500.0,0.00012998,2]
[346993692,1735457448379,-500.0,0.00012998,2]
[346993693,1735457448388,-502.52913293,0.00012998,2]
[346993694,1735457448398,-500.0,0.00012998,2]
[346993695,1735457448408,-500.0,0.00012998,2]
[346993696,1735457448417,-500.0,0.00012998,2]
[346993697,1735457448427,-500.0,0.00012998,2]
[346993698,1735457448436,-500.0,0.00012998,2]
[346993699,1735457448445,-500.0,0.00012998,2]
[346993700,1735457448455,-500.0,0.00012998,2]
[346993701,1735457448464,-500.0,0.00012998,2]
[346993702,1735457448474,-500.0,0.00012998,2]
[346993703,1735457448484,-500.0,0.00012998,2]
[346993704,1735457448493,-500.0,0.00012998,2]
[346993705,1735457448503,-500.0,0.00012998,2]
[346993706,1735457448513,-500.0,0.00012998,2]
[346993707,1735457448523,-500.0,0.00012998,2]
[346993708,1735457448533,-500.0,0.00012998,2]
[346993709,1735457448542,-378.77533098,0.00012998,2]
[346993710,1735457448552,-500.0,0.00012998,2]
[346993711,1735457448561,-500.0,0.00012998,2]
[346993712,1735457448570,-500.0,0.00012998,2]
[346993713,1735457448580,-500.0,0.00012998,2]
[346993714,1735457448589,-500.0,0.00012998,2]
[346993715,1735457448599,-500.0,0.00012998,2]
[346993716,1735457448609,-500.0,0.00012998,2]
[346993717,1735457448618,-500.0,0.00012998,2]
[346993718,1735457448627,-500.0,0.00012998,2]
[346993719,1735457448637,-500.0,0.00012998,2]
[346993720,1735457448646,-500.0,0.00012998,2]
[346993721,1735457448655,-500.0,0.00012998,2]
[346993722,1735457448665,-505.907241,0.00012998,2]
[346993723,1735457448675,-500.0,0.00012998,2]
[346993724,1735457448684,-500.0,0.00012998,2]
[346993725,1735457448693,-500.0,0.00012998,2]
[346993726,1735457448702,-500.0,0.00012998,2]
[346993727,1735457448712,-500.0,0.00012998,2]
[346993728,1735457448721,-502.49580743,0.00012998,2]
[346993729,1735457448731,-500.0,0.00012998,2]
[346993730,1735457448740,-500.0,0.00012998,2]
[346993731,1735457448749,-500.0,0.00012998,2]
[346993732,1735457448759,-500.0,0.00012998,2]
[346993733,1735457448768,-500.0,0.00012998,2]
[346993734,1735457448778,-500.0,0.00012998,2]
[346993735,1735457448787,-500.0,0.00012998,2]
[346993736,1735457448796,-500.0,0.00012998,2]
[346993737,1735457448806,-592.9300671,0.00012998,2]
[346993738,1735457448815,-500.0,0.00012998,2]
[346993739,1735457448824,-500.0,0.00012998,2]
[346993740,1735457448836,-500.0,0.00012998,2]
[346993741,1735457448845,-500.0,0.00012998,2]
[346993742,1735457448855,-500.0,0.00012998,2]
[346993743,1735457448864,-500.0,0.00012998,2]
[346993744,1735457448873,-500.0,0.00012998,2]
[346993745,1735457448882,-500.0,0.00012998,2]
[346993746,1735457448891,-500.0,0.00012998,2]
[346993747,1735457448901,-500.0,0.00012998,2]
[346993748,1735457448910,-500.0,0.00012998,2]
[346993749,1735457448919,-500.0,0.00012998,2]
[346993750,1735457448927,-500.0,0.00012998,2]
[346993751,1735457448979,-500.0,0.00012998,2]
[346993752,1735457448989,-500.0,0.00012998,2]
[346993753,1735457448998,-500.0,0.00012998,2]
[346993754,1735457449007,-500.0,0.00012998,2]
[346993755,1735457449016,-500.0,0.00012998,2]
[346993756,1735457449025,-500.0,0.00012998,2]
[346993757,1735457449034,-500.16,0.00012998,2]
[346993758,1735457449044,-500.0,0.00012998,2]
[346993759,1735457449053,-500.0,0.00012998,2]
[346993760,1735457449062,-500.0,0.00012998,2]
[346993761,1735457449071,-500.0,0.00012998,2]
[346993762,1735457449080,-500.0,0.00012998,2]
[346993763,1735457449089,-500.0,0.00012998,2]
[346993764,1735457449098,-649.66,0.00012998,2]
[346993765,1735457449107,-500.0,0.00012998,2]
[346993766,1735457449117,-500.0,0.00012998,2]
[346993767,1735457449126,-500.0,0.00012998,2]
[346993768,1735457449135,-500.0,0.00012998,2]
[346993769,1735457449144,-500.0,0.00012998,2]
[346993770,1735457449153,-210.58071379,0.00012998,2]
[346993771,1735457449162,-341.45412614,0.00012998,2]
[346993772,1735457449171,-500.0,0.00012998,2]
[346993773,1735457449180,-151.26046623,0.00012998,2]
[346993774,1735457449189,-500.0,0.00012998,2]
[346993775,1735457449198,-500.0,0.00012998,2]
[346993776,1735457449207,-500.0,0.00012998,2]
[346993777,1735457449216,-500.0,0.00012998,2]
[346993778,1735457449226,-500.0,0.00012998,2]
[346993779,1735457449235,-500.0,0.00012998,2]
[346993780,1735457449244,-500.0,0.00012998,2]
[346993781,1735457449254,-500.0,0.00012998,2]
[346993782,1735457449264,-500.0,0.00012998,2]
[346993783,1735457449273,-500.0,0.00012998,2]
[346993784,1735457449282,-500.0,0.00012998,2]
[346993785,1735457449291,-500.0,0.00012998,2]
[346993786,1735457449301,-500.0,0.00012998,2]
[346993787,1735457449310,-500.0,0.00012998,2]
[346993788,1735457449320,-500.0,0.00012998,2]
[346993789,1735457449329,-500.0,0.00012998,2]
[346993790,1735457449338,-500.0,0.00012998,2]
[346993791,1735457449347,-500.0,0.00012998,2]
[346993792,1735457449357,-500.0,0.00012998,2]
[346993793,1735457449366,-500.0,0.00012998,2]
[346993794,1735457449375,-500.0,0.00012998,2]
[346993795,1735457449384,-500.0,0.00012998,2]
[346993796,1735457449393,-500.0,0.00012998,2]
[346993797,1735457449402,-500.0,0.00012998,2]
[346993798,1735457449411,-500.0,0.00012998,2]
[346993799,1735457449421,-500.0,0.00012998,2]
[346993800,1735457449430,-500.0,0.00012998,2]
[346993801,1735457449439,-500.0,0.00012998,2]
[346993802,1735457449448,-500.0,0.00012998,2]
[346993803,1735457449458,-500.0,0.00012998,2]
[346993804,1735457449467,-500.0,0.00012998,2]
[346993805,1735457449477,-500.0,0.00012998,2]
[346993806,1735457449486,-500.0,0.00012998,2]
[346993807,1735457449494,-500.0,0.00012998,2]
[346993808,1735457449504,-500.0,0.00012998,2]
[346993809,1735457449513,-500.0,0.00012998,2]
[346993810,1735457449522,-500.0,0.00012998,2]
[346993811,1735457449531,-500.0,0.00012998,2]
[346993812,1735457449541,-500.0,0.00012998,2]
[346993813,1735457449550,-500.0,0.00012998,2]
[346993814,1735457449559,-500.0,0.00012998,2]
[346993815,1735457449568,-500.0,0.00012998,2]
[346993816,1735457449577,-500.0,0.00012998,2]
[346993817,1735457449586,-2298.94738,0.00012998,2]
[346993818,1735457449595,-500.0,0.00012998,2]
[346993819,1735457449604,-500.0,0.00012998,2]
[346993820,1735457449613,-500.0,0.00012998,2]
[346993821,1735457449623,-350.25547359,0.00012998,2]
[346993822,1735457449633,-500.0,0.00012998,2]
[346993823,1735457449643,-500.0,0.00012998,2]
[346993824,1735457449653,-500.0,0.00012998,2]
[346993825,1735457449662,-500.0,0.00012998,2]
[346993826,1735457449672,-500.0,0.00012998,2]
[346993827,1735457449681,-500.0,0.00012998,2]
[346993828,1735457449689,-159.90808329,0.00012998,2]
[346993829,1735457449698,-500.0,0.00012998,2]
[346993830,1735457449707,-500.0,0.00012998,2]
[346993831,1735457449716,-503.8172145,0.00012998,2]
[346993832,1735457449725,-500.0,0.00012998,2]
[346993833,1735457449734,-500.0,0.00012998,2]
[346993834,1735457449743,-500.0,0.00012998,2]
[346993835,1735457449752,-500.0,0.00012998,2]
[346993836,1735457449761,-500.0,0.00012998,2]
[346993837,1735457449770,-305.48171729,0.00012998,2]
[346993838,1735457449779,-500.0,0.00012998,2]
[346993839,1735457449788,-550.9465083,0.00012998,2]
[346993840,1735457449797,-500.0,0.00012998,2]
[346993841,1735457449806,-500.0,0.00012998,2]
[346993842,1735457449815,-500.0,0.00012998,2]
[346993843,1735457449824,-500.0,0.00012998,2]
[346993844,1735457449835,-1109.24,0.00012998,7]
[346993845,1735457449844,-500.0,0.00012998,2]
[346993846,1735457449854,-500.0,0.00012998,2]
[346993847,1735457449863,-500.0,0.00012998,2]
[346993848,1735457449872,-500.0,0.00012998,2]
[346993849,1735457449882,-500.0,0.00012998,2]
[346993850,1735457449891,-500.0,0.00012998,2]
[346993851,1735457449899,-500.0,0.00012998,2]
[346993852,1735457449909,-500.0,0.00012998,2]
[346993853,1735457449921,-500.0,0.00012998,2]
[346993854,1735457449931,-500.0,0.00012998,2]
[346993855,1735457449940,-500.0,0.00012998,2]
[346993856,1735457449949,-500.0,0.00012998,2]
[346993857,1735457449958,-500.0,0.00012998,2]
[346993858,1735457449968,-500.0,0.00012998,2]
[346993859,1735457449979,-544.2,0.00012998,2]
[346993860,1735457449988,-500.0,0.00012998,2]
[346993861,1735457449997,-500.0,0.00012998,2]
[346993862,1735457450007,-500.0,0.00012998,2]
[346993863,1735457450017,-500.0,0.00012998,2]
[346993864,1735457450027,-500.0,0.00012998,2]
[346993865,1735457450037,-500.0,0.00012998,2]
[346993866,1735457450047,-602.21,0.00012998,2]
[346993867,1735457450056,-500.0,0.00012998,2]
[346993868,1735457450066,-512.00269523,0.00012998,2]
[346993869,1735457450077,-500.0,0.00012998,2]
[346993870,1735457450088,-500.0,0.00012998,2]
[346993871,1735457450098,-500.0,0.00012998,2]
[346993872,1735457450109,-500.0,0.00012998,2]
[346993873,1735457450118,-500.0,0.00012998,2]
[346993874,1735457450127,-500.0,0.00012998,2]
[346993875,1735457450137,-500.0,0.00012998,2]
[346993876,1735457450146,-500.0,0.00012998,2]
[346993877,1735457450155,-495.31352796,0.00012998,2]
[346993878,1735457450164,-500.0,0.00012998,2]
[346993879,1735457450173,-500.0,0.00012998,2]
[346993880,1735457450182,-500.0,0.00012998,2]
[346993881,1735457450192,-500.0,0.00012998,2]
[346993882,1735457450202,-500.0,0.00012998,2]
[346993883,1735457450211,-500.0,0.00012998,2]
[346993884,1735457450220,-500.0,0.00012998,2]
[346993885,1735457450230,-500.0,0.00012998,2]
[346993886,1735457450238,-500.0,0.00012998,2]
[346993887,1735457450248,-500.0,0.00012998,2]
[346993888,1735457450257,-500.0,0.00012998,2]
[346993889,1735457450267,-500.0,0.00012998,2]
[346993890,1735457450276,-444.34930607,0.00012998,2]
[346993891,1735457450286,-500.0,0.00012998,2]
[346993892,1735457450295,-500.0,0.00012998,2]
[346993893,1735457450305,-500.0,0.00012998,2]
[346993894,1735457450314,-500.0,0.00012998,2]
[346993895,1735457450323,-500.0,0.00012998,2]
[346993896,1735457450332,-500.0,0.00012998,2]
[346993897,1735457450341,-500.0,0.00012998,2]
[346993898,1735457450350,-500.0,0.00012998,2]
[346993899,1735457450359,-500.0,0.00012998,2]
[346993900,1735457450368,-500.0,0.00012998,2]
[346993901,1735457450378,-500.0,0.00012998,2]
[346993902,1735457450387,-500.0,0.00012998,2]
[346993903,1735457450397,-500.0,0.00012998,2]
[346993904,1735457450407,-500.0,0.00012998,2]
[346993905,1735457450416,-500.0,0.00012998,2]
[346993906,1735457450426,-282.06890039,0.00012998,2]
[346993907,1735457450435,-378.96,0.00012998,2]
[346993908,1735457450445,-500.0,0.00012999,2]
[346993909,1735457450454,-2904.09,0.00012999,2]
[346993910,1735457450464,-500.0,0.00012999,2]
[346993911,1735457450473,-500.0,0.00012999,2]
[346993912,1735457450483,-500.0,0.00012999,2]
[346993913,1735457450492,-500.0,0.00012999,2]
[346993914,1735457450502,-500.0,0.00012999,2]
[346993915,1735457450511,-1007.36,0.00012999,2]
[346993916,1735457450522,-500.0,0.00012999,2]
[346993917,1735457450531,-362.56362889,0.00012999,2]
[346993918,1735457450541,-500.0,0.00012999,2]
[346993919,1735457450551,-500.0,0.00012999,2]
[346993920,1735457450562,-877162.8479498,0.00013,2]
[346993921,1735457451583,-500.0,0.00012766,2]
[346993922,1735457451595,-616.88135823,0.00012766,2]
[346993923,1735457451605,-702.29796578,0.00013,2]
[346993924,1735457451618,-852.01090001,0.00013,2]
[346993925,1735457451635,-181969.33869484,0.00013,2]
[346993926,1735457451646,-8335.4894197,0.00013,2]
[346993927,1735457451668,-4975.52936314,0.00013,2]
[346993928,1735457451680,-504.80832298,0.00013,2]
[346993929,1735457451913,500.0,0.00024713,120]
[346993930,1735457469795,500.0,0.00024713,120]
[346993932,1735457657226,3000.0,0.00024713,120]
[346993934,1735457747423,214.5110559,0.00010902,2]
[346993935,1735457754828,1423.5651884,0.00010902,2]
[346993936,1735458329422,564.02,9.715e-05,2]
[346993946,1735458389746,218.03,0.00010137,2]
[346994447,1735458491991,150.0,0.00010785,2]
[346994448,1735458492074,150.0,0.00010871,2]
[346994623,1735458611446,150.0,0.00010044,2]
[346994678,1735458632113,-1211.3,0.00011002,2]
[346994679,1735458632125,-3943.99153659,0.00011002,2]
[346994680,1735458632137,-1154.50810787,0.00011002,2]
[346994717,1735458632772,-2894.39113632,0.00011002,2]
[346994719,1735458632783,-992.74370002,0.00011002,2]
[346994722,1735458632805,-12543.10075272,0.00011002,2]
[346994728,1735458637905,-6260.09424986,0.00011002,2]
[346994729,1735458637943,-23933.96890745,0.00011002,2]
[346994730,1735458638081,-5091.92821088,0.00011002,2]
[346994731,1735458638093,-1417.7514687,0.00011002,2]
[346994732,1735458638106,-1539.22192959,0.00011002,2]
[346994733,1735458638117,-150.0,0.00011044,2]
[346994734,1735458638127,-150.0,0.00011281,2]
[346994735,1735458638136,-250.0,0.00011425,2]
[346994736,1735458638147,-1403.04426061,0.0001143,2]
[346994737,1735458638158,-22496.95573939,0.0001143,2]
[346994738,1735458638169,-353.45,0.0001146,2]
[346994739,1735458638180,-830.25,0.00011511,2]
[346994740,1735458638192,-250.0,0.00011546,2]
[346994741,1735458638201,-121.35699449,0.00011696,2]
[346994912,1735458640048,-28.64300551,0.00011696,2]
[346994914,1735458640057,-455.74,0.00011779,2]
[346994916,1735458640067,-200.0,0.00011956,2]
[346994918,1735458640076,-564.02,0.00011979,2]
[346994920,1735458640086,-450.0,0.00012,2]
[346994922,1735458640095,-167.19,0.00012051,2]
[346994924,1735458640104,-1000.0,0.00012126,2]
[346994926,1735458640114,-381.73,0.00012126,2]
[346994928,1735458640123,-379.87,0.00012126,2]
[346994930,1735458640132,-379.09,0.00012126,2]
[346994932,1735458640141,-367.89,0.00012126,2]
[346994934,1735458640150,-150.0,0.00012226,2]
[346994935,1735458640159,-150.0,0.00012231,2]
[346994938,1735458640169,-150.0,0.00012233,2]
[346994939,1735458640178,-1935.0,0.00012263,2]
[346994942,1735458640191,-150.0,0.00012325,2]
[346994944,1735458640200,-361.062,0.0001235,2]
[346994946,1735458640210,-376.69,0.00012442,2]
[346994948,1735458640219,-1294.65446445,0.000125,2]
[346994953,1735458640259,-954.38,0.000125,2]
[346994955,1735458640270,-1341.82219606,0.000125,2]
[346994958,1735458640285,-2918.182826,0.000125,2]
[346994965,1735458640397,-150.0,0.00012433,2]
[346994966,1735458640406,-313.96051349,0.000125,2]
[346994967,1735458640416,-378.57,0.00012586,2]
[346994968,1735458640425,-1082.60723944,0.00012665,2]
[346995253,1735458643190,-346.250014,0.00012665,2]
[346995256,1735458643202,-37.85397711,0.00012665,2]
[346995257,1735458643211,-1466.71123054,0.00012691,2]
[346995259,1735458643220,-1995.43764871,0.000127,2]
[346995261,1735458643231,-26397.73755018,0.000127,2]
[346995263,1735458643240,-1466.71123054,0.00012717,2]
[346995265,1735458643249,-1466.71123054,0.00012743,2]
[346995267,1735458643258,-500.0,0.00012764,2]
[346995269,1735458643267,-3598.87,0.00012764,2]
[346995271,1735458643277,-615.02,0.00012764,2]
[346995273,1735458643286,-6163.45,0.00012764,2]
[346995275,1735458643295,-1867.26,0.00012764,2]
[346995277,1735458643304,-2344.47,0.00012764,2]
[346995279,1735458643313,-5766.29,0.00012764,2]
[346995281,1735458643323,-682.51,0.00012764,2]
[346995282,1735458643332,-500.0,0.00012764,2]
[346995283,1735458643341,-4274.96,0.00012764,2]
[346995284,1735458643350,-1838.41,0.00012764,2]
[346995285,1735458643359,-522.63,0.00012764,2]
[346995286,1735458643368,-619.78,0.00012764,2]
[346995287,1735458643378,-3056.35,0.00012764,2]
[346995288,1735458643387,-1240.0,0.00012764,2]
[346995289,1735458643397,-1375.3,0.00012764,2]
[346995290,1735458643406,-1234.17,0.00012764,2]
[346995291,1735458643414,-1355.66,0.00012764,2]
[346995292,1735458643423,-500.0,0.00012764,2]
[346995293,1735458643432,-1178.71,0.00012764,2]
[346995294,1735458643440,-805.05,0.00012764,2]
[346995295,1735458643450,-588.99,0.00012764,2]
[346995296,1735458643459,-959.59,0.00012764,2]
[346995297,1735458643468,-1535.4,0.00012764,2]
[346995298,1735458643478,-2846.43,0.00012764,2]
[346995299,1735458643487,-500.0,0.00012764,2]
[346995300,1735458643497,-500.0,0.00012764,2]
[346995301,1735458643506,-500.0,0.00012764,2]
[346995302,1735458643515,-559.31795518,0.00012765,2]
[346995303,1735458643524,-392.00649263,0.00012765,2]
[346995304,1735458643534,-759.67,0.00012765,2]
[346995305,1735458643543,-500.0,0.00012765,2]
[346995306,1735458643552,-555.57,0.00012765,2]
[346995307,1735458643771,-500.0,0.00012765,2]
[346995308,1735458643781,-503.37,0.00012765,2]
[346995309,1735458643791,-500.0,0.00012765,2]
[346995310,1735458643800,-500.0,0.00012765,2]
[346995311,1735458643810,-500.0,0.00012765,2]
[346995312,1735458643819,-500.0,0.00012765,2]
[346995313,1735458643828,-901.5,0.00012765,2]
[346995314,1735458643839,-500.0,0.00012765,2]
[346995315,1735458643848,-936.31,0.00012765,2]
[346995316,1735458643857,-639.54,0.00012765,2]
[346995317,1735458643867,-953.46,0.00012765,2]
[346995318,1735458643876,-500.0,0.00012765,2]
[346995319,1735458643885,-500.0,0.00012765,2]
[346995320,1735458643895,-500.0,0.00012765,2]
[346995321,1735458643905,-500.0,0.00012765,2]
[346995322,1735458643914,-606.98984505,0.00012765,2]
[346995323,1735458643924,-609.77830311,0.00012765,2]
[346995324,1735458643933,-731.87,0.00012765,2]
[346995325,1735458643942,-500.0,0.00012765,2]
[346995326,1735458643952,-500.0,0.00012765,2]
[346995327,1735458643962,-500.0,0.00012765,2]
[346995328,1735458643971,-500.0,0.00012765,2]
[346995329,1735458643980,-500.0,0.00012765,2]
[346995330,1735458643989,-668.29,0.00012765,2]
[346995331,1735458643999,-1070.72,0.00012765,2]
[346995332,1735458644008,-154.71266,0.00012765,2]
[346995333,1735458644018,-154.502787,0.00012765,2]
[346995334,1735458644027,-1073.569742,0.00012765,2]
[346995335,1735458644036,-500.0,0.00012765,2]
[346995336,1735458644044,-874.304308,0.00012765,2]
[346995337,1735458644053,-727.10810188,0.00012765,2]
[346995338,1735458644077,-273.52189812,0.00012765,2]
[346995339,1735458644087,-500.0,0.00012765,2]
[346995340,1735458644097,-624.65,0.00012765,2]
[346995341,1735458644106,-415.62800188,0.00012765,2]
[346995356,1735458646056,-728.01,0.00012764,2]
[346995358,1735458646066,-84.37199812,0.00012765,2]
[346995359,1735458646075,-1007.28,0.00012765,2]
[346995360,1735458646084,-500.0,0.00012765,2]
[346995361,1735458646094,-500.0,0.00012765,2]
[346995362,1735458646104,-500.0,0.00012765,2]
[346995363,1735458646113,-500.0,0.00012765,2]
[346995364,1735458646122,-500.0,0.00012765,2]
[346995365,1735458646132,-500.0,0.00012765,2]
[346995366,1735458646141,-500.0,0.00012765,2]
[346995367,1735458646151,-500.0,0.00012765,2]
[346995368,1735458646160,-500.0,0.00012765,2]
[346995369,1735458646170,-500.0,0.00012765,2]
[346995370,1735458646179,-500.0,0.00012765,2]
[346995371,1735458646188,-263.471855,0.00012765,2]
[346995372,1735458646197,-500.0,0.00012765,2]
[346995373,1735458646207,-500.0,0.00012765,2]
[346995374,1735458646216,-829.91,0.00012765,2]
[346995375,1735458646225,-510.07,0.00012765,2]
[346995376,1735458646235,-513.64,0.00012765,2]
[346995377,1735458646246,-587.51,0.00012765,2]
[346995378,1735458646255,-500.0,0.00012765,2]
[346995379,1735458646264,-500.0,0.00012765,2]
[346995380,1735458646273,-500.0,0.00012765,2]
[346995381,1735458646283,-837.8,0.00012765,2]
[346995382,1735458646292,-500.0,0.00012765,2]
[346995383,1735458646301,-500.0,0.00012765,2]
[346995384,1735458646310,-500.0,0.00012765,2]